bitfinex/quotes_ETHUSD_20230404
["timestamp","ask_amount","ask_price","bid_price","bid_amount"]
[1680618205851,3.203,1860.4,1860.0,3.01345]
[1680618206037,3.212,1860.4,1860.1,1.153]
[1680618206237,3.203,1860.4,1860.1,3.101]
[1680618206437,3.203,1860.4,1860.2,2.148]
[1680618206648,0.009,1860.5,1860.2,2.4581]
[1680618206846,3.36248,1860.7,1860.2,2.148]
[1680618207737,0.23,1860.6,1860.2,2.148]
[1680618207940,0.23,1860.6,1860.1,2.36304]
[1680618208146,0.23,1860.6,1860.2,2.148]
[1680618208346,0.38049,1860.6,1860.2,2.148]
[1680618208658,3.203,1860.5,1860.2,0.2148]
[1680618208856,0.23,1860.4,1860.0,7.6464]
[1680618209075,0.15051,1860.3,1860.0,5.4944]
[1680618209288,0.15051,1860.3,1859.9,0.008]
[1680618209289,3.203,1860.3,1859.9,0.008]
[1680618209479,0.23,1860.2,1860.0,2.148]
[1680618209789,3.203,1860.3,1860.0,0.21505]
[1680618209989,0.003,1860.4,1860.2,2.015]
[1680618210147,0.009,1860.6,1860.3,0.64504]
[1680618210348,3.203,1860.6,1860.3,2.36301]
[1680618210650,3.212,1860.6,1860.3,3.273846]
[1680618210881,3.203,1860.6,1860.3,3.273846]
[1680618211472,0.009,1860.7,1860.3,3.273846]
[1680618211693,3.212,1860.9,1860.5,0.21499]
[1680618212291,3.212,1860.9,1860.4,0.3273846]
[1680618212493,0.15946,1860.9,1860.4,0.3273846]
[1680618212664,0.15046,1860.9,1860.2,2.148]
[1680618212995,3.433,1860.8,1860.3,2.79304]
[1680618213404,0.012,1860.9,1860.4,4.91402218]
[1680618213549,0.009,1861.0,1860.5,3.52793]
[1680618213749,0.15042,1861.4,1860.6,0.352793]
[1680618213750,0.009,1861.4,1860.6,0.352793]
[1680618213952,2.77502218,1861.4,1860.8,0.64487]
[1680618214156,0.009,1861.4,1860.8,0.64487]
[1680618214455,0.009,1861.4,1860.9,2.148]
[1680618214652,3.203,1861.3,1860.9,2.148]
[1680618214849,3.212,1861.3,1860.8,3.295445]
[1680618215051,3.212,1861.3,1860.9,2.36294]
[1680618215252,3.212,1861.3,1860.9,2.148]
[1680618215553,6.12845218,1861.3,1860.8,2.148]
[1680618215884,3.203,1861.1,1860.6,2.15]
[1680618216198,3.203,1861.1,1860.6,2.148]
[1680618216199,6.12847218,1861.1,1860.6,2.148]
[1680618216398,0.23,1861.0,1860.6,2.36298]
[1680618216555,0.23,1861.0,1860.6,2.148]
[1680618217064,3.203,1860.9,1860.5,7.6106]
[1680618217255,0.23,1860.8,1860.6,2.148]
[1680618217454,0.23,1860.8,1860.6,2.36298]
[1680618218010,0.012,1861.0,1860.6,0.21498]
[1680618218298,3.009,1861.2,1860.8,0.21496]
[1680618218475,0.009,1861.2,1860.8,0.64488]
[1680618218793,3.0,1861.3,1860.8,0.924168]
[1680618218958,0.48230779,1861.3,1860.7,2.148]
[1680618219344,5.96902218,1861.2,1860.7,2.36296]
[1680618219497,5.98102218,1861.2,1860.7,2.36296]
[1680618219699,3.203,1861.1,1860.7,3.181202]
[1680618220068,0.15944,1861.2,1860.8,2.148]
[1680618220267,3.37544779,1861.3,1860.8,2.148]
[1680618220474,3.38444779,1861.3,1860.8,2.148]
[1680618220667,3.75387757,1861.3,1860.8,2.148]
[1680618220995,3.23401779,1861.3,1860.8,2.36295]
[1680618221298,3.38444779,1861.3,1860.8,2.148]
[1680618222209,3.203,1861.2,1860.7,2.966242]
[1680618222372,0.15045,1861.1,1860.7,2.966242]
[1680618222896,0.45134,1861.1,1860.7,2.966242]
[1680618223113,0.23,1861.0,1860.7,2.148]
[1680618223335,3.36245,1861.1,1860.6,7.5375]
[1680618223475,3.36245,1861.1,1860.7,2.148]
[1680618223785,3.578633,1861.1,1860.7,2.148]
[1680618224218,3.212,1861.1,1860.7,2.148]
[1680618224730,3.212,1861.1,1860.7,2.36297]
[1680618224874,3.212,1861.1,1860.7,2.148]
[1680618225069,3.212,1861.1,1860.8,2.148]
[1680618225780,3.66333,1861.1,1860.7,2.148]
[1680618226009,3.203,1860.9,1860.7,2.148]
[1680618226210,3.212,1860.9,1860.7,2.148]
[1680618226370,3.36246,1860.9,1860.7,2.148]
[1680618226573,6.45141997,1860.9,1860.6,0.002]
[1680618226771,5.6,1860.6,1860.3,0.002]
[1680618226987,5.6,1860.6,1859.7,3.43678472]
[1680618226988,11.71951218,1860.5,1860.0,2.148]
[1680618227207,0.23,1860.4,1859.9,0.006]
[1680618227408,0.23,1860.4,1859.9,2.148]
[1680618227409,3.203,1860.3,1859.9,2.148]
[1680618227590,3.203,1860.3,1859.9,2.154]
[1680618227591,0.23,1860.2,1859.9,2.154]
[1680618227807,0.23,1860.2,1859.9,0.002]
[1680618228135,0.23,1860.2,1859.8,2.36307]
[1680618228481,0.23,1860.2,1859.9,2.36306]
[1680618229018,0.23,1860.2,1860.1,0.21504]
[1680618229425,3.203,1860.2,1860.0,2.36304]
[1680618229934,3.203,1860.2,1859.9,0.21505]
[1680618230220,6.28932218,1860.2,1859.8,2.154]
[1680618230381,0.23,1860.1,1859.8,2.36307]
[1680618230581,0.23,1860.1,1859.8,0.002]
[1680618230832,0.23,1860.1,1859.8,2.148]
[1680618231033,0.23,1860.1,1859.8,0.21507]
[1680618231185,0.23,1860.1,1859.8,2.36307]
[1680618231387,0.23,1860.1,1859.8,0.21507]
[1680618231852,3.203,1860.0,1859.8,2.15]
[1680618232039,0.23,1859.9,1859.7,2.36708]
[1680618232220,3.203,1860.0,1859.8,0.21507]
[1680618232533,3.203,1860.0,1859.8,2.36307]
[1680618232731,0.233,1860.1,1859.8,3.072542]
[1680618232898,3.203,1860.2,1859.8,3.072542]
[1680618233232,3.203,1860.2,1859.9,2.148]
[1680618233394,3.203,1860.2,1859.9,2.36306]
[1680618233793,0.012,1860.4,1860.0,2.148]
[1680618234045,3.203,1860.3,1859.9,0.21506]
[1680618234331,3.203,1860.3,1860.1,2.148]
[1680618234538,3.35351,1860.3,1860.0,2.148]
[1680618235410,0.31301,1860.4,1860.0,2.148]
[1680618235411,3.433,1860.2,1860.0,2.148]
[1680618235810,3.203,1860.2,1860.0,2.44220182]
[1680618236009,3.215,1860.4,1860.0,3.08735182]
[1680618236334,3.203,1860.4,1860.1,2.148]
[1680618236539,0.009,1860.5,1860.1,2.36304]
[1680618236691,3.212,1860.6,1860.3,0.64504]
[1680618236893,3.212,1860.6,1860.2,2.384304]
[1680618237099,3.212,1860.6,1860.3,2.148]
[1680618237346,3.203,1860.6,1860.3,2.148]
[1680618237507,3.203,1860.6,1860.2,2.148]
[1680618237508,3.203,1860.5,1860.2,2.148]
[1680618237842,3.203,1860.5,1860.1,2.148]
[1680618238210,4.0171,1860.5,1859.9,2.15]
[1680618238403,3.203,1860.3,1859.9,2.148]
[1680618238603,3.212,1860.3,1859.8,2.148]
[1680618238804,3.212,1860.3,1859.8,2.36307]
[1680618239008,3.212,1860.3,1859.8,0.494393]
[1680618239202,3.212,1860.3,1859.9,2.148]
[1680618239446,0.009,1860.3,1859.9,2.36306]
[1680618239616,3.36251,1860.4,1859.8,2.36307]
[1680618239799,3.764522,1860.4,1860.0,2.148]
[1680618239999,3.764522,1860.4,1859.9,2.148]
[1680618240238,3.614012,1860.4,1859.9,2.36306]
[1680618240453,3.212,1860.4,1859.9,2.79319]
[1680618240615,3.203,1860.4,1860.0,2.148]
[1680618240801,3.215,1860.6,1860.1,0.8599]
[1680618241008,3.203,1860.6,1860.2,4.171]
[1680618241224,3.203,1860.6,1860.3,0.21501]
[1680618241548,0.009,1860.7,1860.4,2.148]
[1680618241746,0.009,1860.8,1860.4,2.148]
[1680618242173,0.15947,1860.8,1860.4,2.148]
[1680618242471,0.009,1860.8,1860.4,2.148]
[1680618242635,0.15947,1860.8,1860.4,2.148]
[1680618242839,0.009,1860.8,1860.4,2.148]
[1680618243175,0.15947,1860.8,1860.4,2.148]
[1680618243876,0.15947,1860.8,1860.3,0.481606]
[1680618243877,0.50946652,1860.8,1860.3,0.481606]
[1680618244056,0.15049,1860.6,1860.3,2.148]
[1680618244371,3.35349,1860.6,1860.1,2.15]
[1680618244527,3.35349,1860.6,1860.1,3.0496892]
[1680618244954,3.35349,1860.6,1860.2,2.148]
[1680618245548,3.36249,1860.6,1860.2,2.148]
[1680618246851,3.212,1860.6,1860.2,2.148]
[1680618247132,3.35349,1860.6,1860.2,2.148]
[1680618247574,3.212,1860.6,1860.2,2.148]
[1680618247772,3.212,1860.6,1860.2,3.28557811]
[1680618247978,3.203,1860.6,1860.2,4.12308541]
[1680618248178,0.30996,1860.7,1860.3,2.148]
[1680618248393,6.65048218,1860.6,1860.3,2.148]
[1680618248682,6.66248218,1860.6,1860.1,2.15]
[1680618248826,3.203,1860.4,1860.1,2.148]
[1680618249240,3.212,1860.4,1860.1,2.148]
[1680618249500,3.3625,1860.4,1860.1,2.148]
[1680618249669,3.66351,1860.4,1860.0,7.3969]
[1680618249872,4.06668482,1860.4,1859.9,2.71344472]
[1680618250174,4.06668482,1860.4,1859.9,2.70944472]
[1680618250377,3.76567482,1860.4,1860.0,2.70944472]
[1680618250542,3.212,1860.4,1860.0,2.70944472]
[1680618250743,3.212,1860.4,1860.1,2.148]
[1680618251483,3.3625,1860.4,1860.0,2.70944472]
[1680618251687,0.1595,1860.4,1860.0,2.70944472]
[1680618251977,0.1505,1860.4,1860.0,2.70944472]
[1680618252337,3.203,1860.3,1860.0,2.70944472]
[1680618253375,0.1595,1860.4,1860.0,2.70944472]
[1680618253376,3.212,1860.4,1860.0,2.70944472]
[1680618253558,3.3625,1860.4,1860.1,2.148]
[1680618253733,3.3625,1860.4,1860.0,0.56144472]
[1680618253939,3.73135178,1860.4,1860.0,2.70944472]
[1680618254143,3.58085178,1860.4,1860.0,2.70944472]
[1680618254850,3.58085178,1860.4,1860.0,2.92449472]
[1680618255046,0.009,1860.4,1860.0,2.92449472]
[1680618255282,3.203,1860.3,1860.0,2.92449472]
[1680618255489,3.203,1860.3,1860.1,2.70944472]
[1680618255777,0.009,1860.4,1860.2,2.36303]
[1680618255949,3.212,1860.6,1860.3,0.236303]
[1680618256152,3.212,1860.6,1860.3,2.384303]
[1680618256347,3.212,1860.6,1860.3,2.148]
[1680618258235,3.212,1860.6,1860.3,2.79304]
[1680618258236,0.009,1860.6,1860.3,2.79304]
[1680618258431,0.009,1860.8,1860.4,2.148]
[1680618258642,0.239,1860.8,1860.4,2.427304]
[1680618259031,0.239,1860.8,1860.4,2.642304]
[1680618259384,0.239,1860.8,1860.4,2.427304]
[1680618259895,3.203,1860.7,1860.4,0.279304]
[1680618260253,3.203,1860.7,1860.4,2.427304]
[1680618260455,3.212,1860.7,1860.4,2.427304]
[1680618260981,3.203,1860.7,1860.4,2.427304]
[1680618262683,3.203,1860.7,1860.5,2.3907304]
[1680618263238,3.203,1860.7,1860.4,2.433304]
[1680618263447,3.203,1860.7,1860.4,2.427304]
[1680618263645,3.203,1860.7,1860.4,2.148]
[1680618263857,3.436,1860.8,1860.4,2.148]
[1680618264144,3.433,1860.8,1860.4,2.148]
[1680618264595,3.58347,1860.8,1860.4,2.148]
[1680618264838,3.433,1860.8,1860.4,2.148]
[1680618265536,3.86243568,1860.8,1860.4,0.215]
[1680618265839,3.86243568,1860.8,1860.3,0.78244472]
[1680618266132,3.86243568,1860.8,1860.3,0.56144472]
[1680618266283,3.86243568,1860.8,1860.3,0.77645472]
[1680618266686,2.76602218,1860.7,1860.2,1.40495202]
[1680618266886,3.58349,1860.6,1860.2,0.002]
[1680618267086,3.58349,1860.6,1860.1,3.76799202]
[1680618267402,3.58349,1860.6,1860.1,2.71544472]
[1680618267617,4.28746158,1860.6,1860.1,2.71544472]
[1680618268004,4.58843158,1860.6,1860.1,2.71544472]
[1680618268550,4.58843158,1860.6,1860.1,3.55295202]
[1680618269051,4.28746158,1860.6,1860.2,0.56144472]
[1680618269752,3.433,1860.6,1860.2,0.56144472]
[1680618270135,3.433,1860.6,1860.2,0.77647472]
[1680618270499,3.203,1860.6,1860.3,0.56144472]
[1680618270704,3.203,1860.6,1860.4,0.56144472]
[1680618270945,3.203,1860.6,1860.5,0.61758919]
[1680618271245,3.203,1860.6,1860.5,2.70944472]
[1680618271419,3.21430553,1860.8,1860.5,2.70944472]
[1680618271621,0.83633903,1860.9,1860.6,0.56144472]
[1680618271622,3.206,1860.9,1860.6,0.56144472]
[1680618271825,3.206,1860.9,1860.7,0.70105447]
[1680618271826,3.203,1860.9,1860.7,0.70105447]
[1680618272022,3.203,1860.9,1860.7,0.27111447]
[1680618272224,0.01130553,1861.1,1860.7,0.70105447]
[1680618272422,0.03332332,1861.2,1860.7,0.70105447]
[1680618272658,10.39920553,1861.3,1860.8,0.07010545]
[1680618272820,3.203,1861.2,1860.9,0.64482]
[1680618273236,0.01130553,1861.3,1861.0,2.148]
[1680618273448,10.239,1861.4,1861.1,0.21492]
[1680618273449,0.01130553,1861.4,1861.1,0.21492]
[1680618273645,0.214962,1861.5,1861.1,0.64477]
[1680618273959,0.214962,1861.5,1861.1,2.148]
[1680618274156,0.214962,1861.5,1861.1,2.36292]
[1680618274516,0.214962,1861.5,1861.1,2.79277]
[1680618274719,0.214962,1861.5,1861.1,3.0999752]
[1680618275456,0.214962,1861.5,1861.1,4.2549752]
[1680618275987,0.214962,1861.5,1861.2,2.148]
[1680618276135,0.214962,1861.5,1861.3,0.2149]
[1680618276334,3.417962,1861.5,1861.3,0.2149]
[1680618276976,0.214962,1861.5,1861.3,0.2149]
[1680618277133,0.214962,1861.5,1861.3,0.45119]
[1680618277332,0.214962,1861.5,1861.3,0.23629]
[1680618277530,0.214962,1861.5,1861.3,2.38429]
[1680618278175,3.203,1861.4,1861.1,2.15]
[1680618278356,3.203,1861.4,1860.9,2.148]
[1680618278357,3.36172553,1861.4,1860.9,2.148]
[1680618278564,3.21130553,1861.4,1861.0,0.2148]
[1680618278877,0.00830553,1861.4,1861.0,0.8596]
[1680618279079,6.42926753,1861.5,1861.1,2.148]
[1680618279375,0.22626753,1861.5,1861.1,3.09352]
[1680618279724,0.214962,1861.5,1861.1,0.51567]
[1680618279885,0.214962,1861.5,1861.1,0.30076]
[1680618280031,0.365382,1861.5,1861.1,2.44876]
[1680618280236,3.869212,1861.5,1861.1,2.148]
[1680618280467,3.869212,1861.5,1860.9,2.152]
[1680618280685,3.417962,1861.5,1860.9,2.36294]
[1680618280871,0.23,1861.4,1860.9,2.36294]
[1680618281179,3.433,1861.4,1861.1,0.21492]
[1680618281378,3.433,1861.4,1861.1,0.16492]
[1680618281581,0.22626753,1861.5,1861.2,2.148]
[1680618281750,0.214962,1861.5,1861.3,0.6447]
[1680618281950,0.214962,1861.5,1861.4,2.21247]
[1680618282152,0.214962,1861.5,1861.4,2.42736]
[1680618282488,0.214962,1861.5,1861.4,2.85714]
[1680618283077,0.214962,1861.5,1861.4,2.148]
[1680618283385,0.214962,1861.5,1861.2,2.36491]
[1680618283591,0.214962,1861.5,1861.2,2.148]
[1680618283790,0.214962,1861.5,1861.1,7.92191]
[1680618283953,0.214962,1861.5,1861.2,2.148]
[1680618284155,0.214962,1861.5,1861.2,0.2149]
[1680618284703,0.214962,1861.5,1861.2,2.3629]
[1680618285078,0.214962,1861.5,1861.2,2.148]
[1680618285281,0.214962,1861.5,1861.2,2.36291]
[1680618285454,0.214962,1861.5,1861.2,2.79274]
[1680618285654,0.214962,1861.5,1861.2,0.924014]
[1680618286855,0.214962,1861.5,1861.3,2.148]
[1680618287056,0.214962,1861.5,1861.2,2.427274]
[1680618287393,0.214962,1861.5,1861.3,0.21489]
[1680618287783,0.02201779,1861.6,1861.3,0.21489]
[1680618287990,0.02201779,1861.6,1861.3,0.5220884]
[1680618288292,0.02201779,1861.6,1861.3,0.3071984]
[1680618288504,0.02201779,1861.6,1861.2,2.427274]
[1680618288710,0.02201779,1861.6,1861.3,0.2149]
[1680618288904,0.02201779,1861.6,1861.3,2.7927]
[1680618289111,0.02201779,1861.6,1861.3,0.6447]
[1680618289572,0.02201779,1861.6,1861.4,2.148]
[1680618290269,0.02201779,1861.6,1861.5,2.148]
[1680618290488,0.00830553,1861.6,1861.5,2.148]
[1680618290692,0.11830554,1861.8,1861.5,2.36288]
[1680618290976,0.11830554,1861.8,1861.5,2.79264]
[1680618290977,0.11000001,1861.8,1861.5,2.79264]
[1680618291181,0.11000001,1861.8,1861.6,0.279264]
[1680618291431,0.11000001,1861.8,1861.6,0.923844]
[1680618291580,0.11000001,1861.8,1861.6,0.279264]
[1680618292397,0.11000001,1861.8,1861.7,2.76602218]
[1680618292613,0.11000001,1861.8,1861.7,6.7849898]
[1680618293506,0.11000001,1861.8,1861.7,14.4029898]
[1680618293716,0.11000001,1862.1,1862.0,1.0]
[1680618293879,0.11000001,1862.3,1862.1,0.5]
[1680618294078,0.11000001,1862.3,1862.2,11.88759218]
[1680618294280,0.11000001,1862.3,1862.2,14.03359218]
[1680618294524,0.11000001,1862.3,1862.2,15.7371514]
[1680618295443,0.11000001,1862.4,1862.2,15.7371514]
[1680618295954,0.11000001,1862.4,1862.3,2.79035]
[1680618296136,0.11000001,1862.4,1862.3,5.55637218]
[1680618296332,1e-08,1862.4,1862.3,13.16137218]
[1680618296512,1e-08,1862.4,1862.3,17.94877632]
[1680618298822,1e-08,1862.4,1862.3,23.47497632]
[1680618302435,2e-08,1862.5,1862.3,24.47497632]
[1680618302726,0.11000001,1863.0,1862.6,8.10326]
[1680618302946,0.11000001,1863.0,1862.6,15.86928218]
[1680618303114,0.11000001,1863.0,1862.6,15.01528218]
[1680618307025,0.11000001,1863.0,1862.6,17.03528218]
[1680618307347,0.11000001,1863.0,1862.6,17.03328218]
[1680618307531,0.11000001,1863.0,1862.6,18.9515744]
[1680618308261,0.11000001,1863.0,1862.6,24.5665744]
[1680618310478,0.11000001,1863.0,1862.6,24.5685744]
[1680618310779,0.11000001,1863.0,1862.6,7.70854222]
[1680618310780,0.1320178,1863.0,1862.6,7.70854222]
[1680618310959,0.1320178,1863.0,1862.6,5.79025]
[1680618311992,0.1320178,1863.0,1862.6,8.55627218]
[1680618313086,0.02201779,1862.9,1862.6,5.55627218]
[1680618313388,0.02201779,1862.9,1862.6,2.79025]
[1680618314267,0.11000001,1863.0,1862.6,2.79025]
[1680618314471,0.11000001,1863.0,1862.6,5.55627218]
[1680618314805,0.11000001,1863.0,1862.6,6.1980014]
[1680618317888,0.11000001,1863.0,1862.6,8.2050014]
[1680618318198,0.11000001,1863.0,1862.6,16.8050014]
[1680618320105,0.11000001,1863.0,1862.6,14.7980014]
[1680618320978,0.11000001,1863.0,1862.6,15.32455981]
[1680618322006,0.11000001,1863.0,1862.6,9.1980014]
[1680618322730,0.1320178,1863.0,1862.6,9.1980014]
[1680618323412,0.11000001,1863.0,1862.6,14.7980014]
[1680618323943,0.10749768,1862.7,1862.6,9.1980014]
[1680618324128,0.10749768,1862.7,1862.6,14.7980014]
[1680618325836,0.06749769,1863.0,1862.6,14.7980014]
[1680618326158,0.06749769,1863.0,1862.8,0.64419]
[1680618326554,0.06749769,1863.0,1862.9,2.146]
[1680618326754,0.06749769,1863.0,1862.9,2.79014]
[1680618330015,0.06749769,1863.0,1862.9,5.55616218]
[1680618330222,0.06749769,1863.0,1862.9,7.25287299]
[1680618334361,0.69829921,1863.0,1862.9,7.25287299]
[1680618336639,0.11830554,1863.3,1862.9,7.25087299]
[1680618336989,0.11300001,1863.7,1863.3,6.1]
[1680618337168,0.11300001,1863.7,1863.5,9.24901]
[1680618337367,0.11000001,1863.7,1863.6,3.40992218]
[1680618337540,0.11000001,1863.7,1863.6,15.3554224]
[1680618337963,0.11000001,1863.7,1863.6,15.91686712]
[1680618338376,0.11000001,1863.9,1863.7,0.5]
[1680618338576,0.11000001,1863.9,1863.8,12.57550096]
[1680618338781,0.11000001,1863.9,1863.8,17.71950096]
[1680618338951,0.11000001,1863.9,1863.8,17.15847218]
[1680618339603,0.11000001,1863.9,1863.8,15.01447218]
[1680618339762,0.11000001,1863.9,1863.8,17.15847218]
[1680618340084,0.11000001,1863.9,1863.8,20.0837313]
[1680618341644,0.11000001,1863.9,1863.8,14.4837313]
[1680618343488,1.38627305,1863.9,1863.8,14.4837313]
[1680618345389,1.38627305,1863.9,1863.8,11.71770912]
[1680618345603,1.38627305,1863.9,1863.8,8.79245]
[1680618347890,1.38627305,1863.9,1863.8,6.6463]
[1680618350700,1.38627305,1863.9,1863.8,3.6463]
[1680618350883,2.53727305,1863.9,1863.8,2.35861]
[1680618351712,2.53727305,1863.9,1863.8,2.78784]
[1680618352043,1.39527305,1863.9,1863.8,2.78784]
[1680618352185,1.38627305,1863.9,1863.8,2.78784]
[1680618354432,1.38627305,1863.9,1863.8,5.91869318]
[1680618356489,0.11000001,1863.9,1863.8,5.91869318]
[1680618357503,0.11000001,1863.9,1863.8,2.78784]
[1680618358131,1.2800178,1863.9,1863.8,2.144]
[1680618358535,1.2800178,1863.9,1863.7,2.144]
[1680618358740,1.2800178,1863.9,1863.7,0.21462]
[1680618358943,1.2800178,1863.9,1863.8,2.144]
[1680618359531,2.09235156,1863.9,1863.8,2.144]
[1680618359741,6.5083421,1863.9,1863.7,2.144]
[1680618359951,1.147,1863.8,1863.5,2.144]
[1680618360148,1.149,1863.7,1863.5,2.35864]
[1680618360348,0.009,1863.8,1863.5,0.922726]
[1680618360494,1.26600001,1863.9,1863.5,0.922726]
[1680618360696,1.26600001,1863.9,1863.7,0.64387]
[1680618361140,0.10668909,1863.9,1863.8,2.78784]
[1680618361909,0.10668909,1863.9,1863.8,2.35861]
[1680618362947,1.24868909,1863.9,1863.8,2.144]
[1680618363247,1.24868909,1863.9,1863.6,2.36462]
[1680618363428,1.24868909,1863.9,1863.6,2.79389]
[1680618363611,1.24868909,1863.9,1863.7,2.144]
[1680618363813,1.24868909,1863.9,1863.7,2.35862]
[1680618364226,0.10668909,1863.9,1863.7,2.144]
[1680618364519,1.001,1863.8,1863.6,0.21463]
[1680618364712,1.145,1863.7,1863.6,0.21463]
[1680618365254,1.145,1863.7,1863.6,2.35863]
[1680618366104,1.045,1863.7,1863.6,2.35863]
[1680618366644,1.045,1863.7,1863.6,2.144]
[1680618366848,1.045,1863.7,1863.6,2.35863]
[1680618367051,1.045,1863.7,1863.6,2.144]
[1680618367265,3.203,1863.6,1863.5,2.144]
[1680618367400,5.503,1863.6,1863.3,2.36066]
[1680618367602,1.1376042,1863.4,1863.3,2.35866]
[1680618367905,1.1376042,1863.4,1863.2,0.21467]
[1680618367906,1.0376042,1863.4,1863.2,0.21467]
[1680618368104,1.147,1863.3,1863.1,0.13129036]
[1680618368304,1.147,1863.3,1863.2,0.21468]
[1680618368553,1.147,1863.3,1863.2,2.144]
[1680618368917,1.147,1863.3,1863.1,2.35869]
[1680618369310,1.147,1863.3,1863.2,2.144]
[1680618369512,1.047,1863.3,1863.2,2.144]
[1680618370580,1.047,1863.3,1863.1,2.144]
[1680618370776,1.047,1863.3,1863.2,2.144]
[1680618371102,1.047,1863.3,1863.0,2.3587]
[1680618371398,0.15025,1863.5,1863.1,2.144]
[1680618371599,1.148,1863.2,1863.1,2.146]
[1680618371808,1.148,1863.2,1863.0,2.146]
[1680618372100,1.145,1863.1,1862.9,2.36671]
[1680618372309,3.206,1863.4,1863.0,2.146]
[1680618372310,1.148,1863.2,1863.0,2.146]
[1680618372455,1.148,1863.1,1863.0,2.146]
[1680618372812,1.148,1863.1,1862.9,0.21471]
[1680618372970,1.145,1863.0,1862.9,0.21471]
[1680618373178,1.151,1863.0,1862.9,0.21471]
[1680618373395,1.151,1863.0,1862.9,2.36071]
[1680618374386,2.4333168,1863.0,1862.9,2.36071]
[1680618374587,2.4333168,1863.0,1862.9,3.069157]
[1680618374816,1.1823168,1863.0,1862.9,3.069157]
[1680618375495,11.8147,1863.3,1862.9,3.069157]
[1680618375681,1.154,1863.3,1862.9,3.069157]
[1680618375884,1.142,1863.3,1863.0,2.146]
[1680618376083,1.142,1863.3,1863.1,0.21469]
[1680618376480,1.24516986,1863.2,1863.1,2.146]
[1680618376687,1.24516986,1863.2,1863.1,2.36069]
[1680618377169,1.24516986,1863.2,1863.1,2.79008]
[1680618377706,1.24516986,1863.2,1863.1,2.36069]
[1680618378725,1.24516986,1863.2,1863.1,3.09978157]
[1680618378873,1.24516986,1863.2,1863.1,3.09778157]
[1680618380077,1.24516986,1863.2,1863.1,5.86380375]
[1680618382400,2.27309183,1863.2,1863.1,5.86380375]
[1680618382614,2.27309183,1863.2,1863.1,5.86780375]
[1680618383784,2.27309183,1863.2,1863.1,3.09978157]
[1680618383984,2.12309183,1863.2,1863.1,3.10178157]
[1680618384184,2.12309183,1863.2,1863.1,3.09778157]
[1680618384592,3.23701779,1863.5,1863.1,2.78808]
[1680618384934,3.22501779,1863.5,1863.2,2.144]
[1680618385089,3.22501779,1863.5,1863.3,0.21467]
[1680618385424,3.22501779,1863.5,1863.4,2.144]
[1680618385624,3.22501779,1863.5,1863.3,2.144]
[1680618385625,5.05151957,1863.5,1863.3,2.144]
[1680618385799,5.05151957,1863.5,1863.1,2.36069]
[1680618385800,4.575,1863.4,1863.1,2.36069]
[1680618386003,1.151,1863.3,1863.1,2.36069]
[1680618386230,1.151,1863.3,1863.2,2.146]
[1680618386405,1.151,1863.3,1863.2,2.36068]
[1680618386803,1.151,1863.3,1863.2,0.21468]
[1680618387492,3.97275196,1863.4,1863.2,0.21468]
[1680618387693,3.96975196,1863.4,1863.2,0.21468]
[1680618388520,3.96975196,1863.4,1863.1,2.36068]
[1680618388713,3.96975196,1863.4,1863.2,2.146]
[1680618388945,3.96975196,1863.4,1863.2,2.36068]
[1680618389294,3.96975196,1863.4,1863.2,0.21468]
[1680618389494,3.96975196,1863.4,1863.1,2.146]
[1680618389495,4.7449752,1863.3,1863.1,2.146]
[1680618389749,4.7539752,1863.3,1863.1,2.146]
[1680618390060,4.7539752,1863.3,1863.1,2.36069]
[1680618390398,4.7539752,1863.3,1863.2,2.146]
[1680618390653,4.9839752,1863.3,1863.0,2.36069]
[1680618390799,4.345,1863.1,1862.9,2.146]
[1680618390997,1.147,1863.0,1862.8,0.43545]
[1680618391200,3.206,1863.1,1863.0,2.146]
[1680618391437,3.206,1863.1,1862.9,0.21471]
[1680618391438,5.06813975,1863.1,1862.9,2.36071]
[1680618391643,5.07113975,1863.1,1862.9,2.36071]
[1680618392013,1.148,1863.0,1862.9,2.36071]
[1680618392543,2.17717324,1863.0,1862.9,2.36071]
[1680618392742,2.17717324,1863.0,1862.9,2.146]
[1680618393043,2.17717324,1863.0,1862.9,2.36071]
[1680618393342,2.17717324,1863.0,1862.9,2.146]
[1680618393997,5.99080454,1863.0,1862.9,2.146]
[1680618394198,6.40511233,1863.0,1862.8,2.146]
[1680618394403,3.203,1862.8,1862.6,2.70902878]
[1680618394602,4.6653,1862.8,1862.6,2.146]
[1680618394833,4.58,1862.7,1862.5,2.80702878]
[1680618395030,4.345,1862.6,1862.5,2.80702878]
[1680618395247,4.345,1862.6,1862.5,2.246]
[1680618395248,4.575,1862.6,1862.5,2.246]
[1680618395401,6.05511573,1862.6,1862.5,0.1]
[1680618395604,5.0358,1862.6,1862.5,0.1]
[1680618396001,5.19512,1862.6,1862.5,0.1]
[1680618396210,7.95214218,1862.6,1862.5,0.1]
[1680618396484,13.44782218,1862.6,1862.5,0.1]
[1680618397306,13.45682218,1862.6,1862.5,0.1]
[1680618397845,13.44782218,1862.6,1862.5,0.1]
[1680618399218,7.80182218,1862.6,1862.5,0.1]
[1680618399421,7.81082218,1862.6,1862.5,0.1]
[1680618399809,7.80182218,1862.6,1862.5,0.1]
[1680618400915,7.81082218,1862.6,1862.5,0.1]